Workbook

Sheet Sheet1
I3: Michigan Lottery Deposits
D4: Bank Statements | I4: March | J4: April
D5: 2024-03-01 | E5: 3830.11 | F5: -450 | G5: =SUM(E5:F5) -> 3380.11 | I5: 450 | J5: FAF_WWW.MICHIGAN | Q5: What are deposits from these vendors for:
D6: 2024-04-01 | E6: 4370.73 | F6: -1400 | G6: 2970.73 | Q6: FAF_www.Michigan
D7: 2024-05-01 | E7: 4739.18 | F7: -500 | G7: 4239.18 | Q7: Further, LLC
D8: 2024-06-01 | E8: 4622.51 | F8: -800 | G8: 3822.51 | Q8: Raiser
D9: 2024-07-01 | E9: 5399.11 | F9: -1200 | G9: 4199.11 | Q9: Elastic Fund
D10: 2024-08-01 | E10: 5881.13 | F10: -1945 | G10: 3936.13 | I10: Further, LLC | J10: Cash App | Q10: Cash App
I11: 1820
D12: Average: | E12: =AVERAGE(E5:E10) -> 4807.128333 | F12: =AVERAGE(F5:F10) -> -1049.166667 | G12: =AVERAGE(G5:G10) -> 3757.961667 | I12: 70
I16: Raiser
I17: 332.22
I21: Uber
I22: 98.91 | Q22: February | S22: March | U22: April | W22: May | Y22: June | AA22: July
I23: 134.08 | Q23: -352 | S23: 500 | U23: -555 | W23: -35 | Y23: 290 | AA23: 1295
I24: 135.46 | Q24: 450 | R24: -802 | S24: 1400 | T24: -900 | U24: 500 | V24: -1055 | W24: 800 | X24: -835 | Y24: 1200 | Z24: -910 | AA24: 1945 | AB24: -650
I25: 135.22 | Q25: 450 | S25: 1400 | U25: 500 | W25: 800 | Y25: 1200 | AA25: 1945
I27: Lyft
J36: Elastic Fund

Sheet Sheet2
D1: The 6 months between February & August
B2: GAS: | D2: Shell | E2: Marathon | F2: Speedway | G2: Exxon | H2: Meijer | I2: Sunoco | J2: Kroger Fuel
B3: Total: | C3: =SUM(D3:M3) -> 2167.27 | D3: =SUM(D4:D50) -> 655.67 | E3: =SUM(E4:E50) -> 281.14 | F3: 724.42 | G3: 234.73 | H3: 35 | I3: 127.05 | J3: 109.26 | K3: 0
B4: Fuel | C4: =C3/6 -> 361.2116667 | D4: 34.22 | E4: 10 | F4: 25.15 | G4: 12 | H4: 35 | I4: 20.04 | J4: 35.75
B5: Auto Ins | C5: 189 | D5: 20.01 | E5: 7.98 | F5: 10.76 | G5: 50.71 | I5: 20 | J5: 32.5
B6: Lot | C6: 464.2 | D6: 30 | E6: 20 | F6: 42.3 | G6: 38 | I6: 20 | J6: 41.01
B7: Car Maint | C7: 262.49 | D7: 30.01 | E7: 41.52 | F7: 13.67 | G7: 45 | I7: 22.01
B8: AT&T | C8: 147.8 | D8: 29.32 | E8: 25.09 | F8: 41.25 | G8: 43.01 | I8: 45
D9: 15.79 | E9: 20.01 | F9: 7.19 | G9: 46.01
D10: 25 | E10: 7.17 | F10: 30
D11: 16.26 | E11: 40.01 | F11: 20
D12: 21.49 | E12: 25.01 | F12: 40
C13: =SUM(C4:C5,C7:C8) -> 960.5016667 | D13: 20 | E13: 44 | F13: 12.43
D14: 53 | E14: 40.35 | F14: 40.01
D15: 12.89 | F15: 15.01
D16: 25.15 | F16: 46.01 | P16: =AVERAGE(R16:W16) -> 188.9716667 | Q16: Auto Owners Insurance | R16: 114.78 | S16: 114.78 | T16: 243.74 | U16: 227.96 | V16: 227.95 | W16: 204.62
D17: 3.99 | F17: 25.01 | P17: =AVERAGE(R17:W17) -> 464.204 | Q17: Windsor Estates | R17: 465.23 | S17: 486.75 | T17: 490.31 | U17: 388.72 | V17: 490.01
D18: 35 | F18: 9.53 | P18: =AVERAGE(R18:W18) -> 262.485 | Q18: EATON CAR CARE I | R18: 150 | S18: 300 | T18: 106.25 | U18: 493.69
D19: 20 | F19: 43.01 | P19: =AVERAGE(R19:W19) -> 147.795 | Q19: ATT | R19: 147.86 | S19: 147.86 | T19: 147.86 | U19: 147.73 | V19: 147.73 | W19: 147.73
D20: 20.02 | F20: 20.03 | P20: =AVERAGE(R20:W20) -> 9.5 | Q20: Car wash | R20: 10 | S20: 9
D21: 9.32 | F21: 12.32
D22: 30.08 | F22: 7.28
D23: 12.58 | F23: 30.03 | P23: =SUM(P16:P22) -> 1072.955667
D24: 40.5 | F24: 30
D25: 12.89 | F25: 38.01
D26: 50 | F26: 34
D27: 42 | F27: 43.01
D28: 12.41 | F28: 44.4
D29: 24.32 | F29: 44.01
D30: 9.42
L32: Business Expenses annually
L34: Fuel | M34: 4332
L35: Auto Ins | M35: 2268
L36: Car Maint | M36: 3150
L37: AT&T | M37: 1774
M38: =SUM(M34:M37) -> 11524

Sheet Sheet3
C3: Michigan Lottery
C5: February | E5: March | G5: April | I5: May | K5: June | M5: July
A6: =SUM(C6:N6) -> 1143 | B6: =A6/6 -> 190.5 | C6: =SUM(C7:D7) -> -352 | E6: =SUM(E7:F7) -> 500 | G6: =SUM(G7:H7) -> -555 | I6: =SUM(I7:J7) -> -35 | K6: =SUM(K7:L7) -> 290 | M6: =SUM(M7:N7) -> 1295
A7: =A6/6 -> 190.5 | C7: =SUM(C8:C32) -> 450 | D7: =-SUM(D8:D32) -> -802 | E7: =SUM(E8:E32) -> 1400 | F7: =-SUM(F8:F32) -> -900 | G7: 500 | H7: =-SUM(H8:H32) -> -1055 | I7: 800 | J7: =-SUM(J8:J32) -> -835 | K7: 1200 | L7: =-SUM(L8:L32) -> -910 | M7: 1945 | N7: =-SUM(N8:N32) -> -650 | P7: FAF WWW.Michigan
A8: =SUM(C8:N8) -> 6295 | C8: 450 | E8: =SUM(Q8:Q10) -> 1400 | G8: =SUM(Q11:Q12) -> 500 | I8: =SUM(Q13:Q14) -> 800 | K8: =SUM(Q15:Q18) -> 1200 | M8: =SUM(Q19:Q23) -> 1945 | P8: Mar | Q8: 300
D9: 50 | F9: 50 | H9: 50 | J9: 45 | L9: 30 | N9: 30 | P9: Mar | Q9: 700
D10: 50 | F10: 50 | H10: 25 | J10: 50 | L10: 30 | N10: 40 | P10: Mar | Q10: 400
D11: 50 | F11: 50 | H11: 50 | J11: 50 | L11: 40 | N11: 40 | P11: Apr | Q11: 300
D12: 50 | F12: 50 | H12: 50 | J12: 50 | L12: 40 | N12: 40 | P12: Apr | Q12: 200
D13: 50 | F13: 50 | H13: 50 | J13: 50 | L13: 40 | N13: 40 | P13: May | Q13: 300
D14: 50 | F14: 50 | H14: 50 | J14: 50 | L14: 60 | N14: 30 | P14: May | Q14: 500
D15: 50 | F15: 50 | H15: 50 | J15: 30 | L15: 40 | N15: 30 | P15: Jun | Q15: 400
D16: 50 | F16: 50 | H16: 50 | J16: 50 | L16: 50 | N16: 50 | P16: Jun | Q16: 300
D17: 50 | F17: 50 | H17: 50 | J17: 50 | L17: 40 | N17: 50 | P17: Jun | Q17: 300
D18: 50 | F18: 50 | H18: 50 | J18: 50 | L18: 40 | N18: 50 | P18: Jun | Q18: 200
D19: 50 | F19: 50 | H19: 50 | J19: 50 | L19: 50 | N19: 45 | P19: Jul | Q19: 400
D20: 12 | F20: 50 | H20: 50 | J20: 50 | L20: 50 | N20: 45 | P20: Jul | Q20: 405
D21: 50 | F21: 50 | H21: 50 | J21: 50 | L21: 50 | N21: 40 | P21: Jul | Q21: 500
D22: 50 | F22: 50 | H22: 50 | J22: 50 | L22: 50 | N22: 40 | P22: Jul | Q22: 500
D23: 25 | F23: 50 | H23: 50 | J23: 25 | L23: 50 | N23: 40 | P23: Jul | Q23: 140
D24: 40 | F24: 100 | H24: 50 | J24: 35 | L24: 50 | N24: 40 | P24: Aug | Q24: 200
D25: 35 | F25: 50 | H25: 50 | J25: 50 | L25: 50
D26: 40 | H26: 50 | J26: 50 | L26: 50
H27: 60 | L27: 50
H28: 60 | L28: 50
H29: 60
